fUSD/lending_fUSD_20250109
["ID","MTS","AMOUNT","RATE_DAILY","PERIOD"]
[348222299,1736398266240,-437.05083046,0.00011542,2]
[348222300,1736398266250,-500.0,0.00011542,2]
[348222301,1736398266259,-1775.27,0.00011542,2]
[348222302,1736398266271,-500.0,0.00011542,2]
[348222303,1736398266280,-500.0,0.00011542,2]
[348222304,1736398266290,-500.0,0.00011542,2]
[348222305,1736398266300,-500.0,0.00011542,2]
[348222306,1736398266309,-510.87857522,0.00011542,2]
[348222307,1736398266320,-500.0,0.00011542,2]
[348222308,1736398266330,-536.88,0.00011542,2]
[348222309,1736398266340,-500.0,0.00011542,2]
[348222310,1736398266349,-500.0,0.00011542,2]
[348222311,1736398266358,-974.03,0.00011542,2]
[348222312,1736398266367,-500.0,0.00011542,2]
[348222313,1736398266376,-500.0,0.00011542,2]
[348222314,1736398266385,-500.0,0.00011542,2]
[348222315,1736398266394,-500.0,0.00011542,2]
[348222316,1736398266403,-991.83,0.00011542,2]
[348222317,1736398266413,-500.0,0.00011542,2]
[348222318,1736398266422,-500.0,0.00011543,2]
[348222319,1736398266431,-500.0,0.00011543,2]
[348222320,1736398266490,-500.0,0.00011543,2]
[348222321,1736398266501,-410.76100666,0.00011543,2]
[348222322,1736398266513,-500.0,0.00011543,2]
[348222323,1736398266522,-500.0,0.00011543,2]
[348222324,1736398266531,-500.0,0.00011543,2]
[348222325,1736398266540,-518.69449551,0.00011543,2]
[348222326,1736398266551,-500.0,0.00011543,2]
[348222327,1736398266560,-500.0,0.00011543,2]
[348222328,1736398266569,-500.0,0.00011543,2]
[348222329,1736398266580,-203.4684344,0.00011543,2]
[348222330,1736398266590,-500.0,0.00011543,2]
[348222331,1736398266599,-500.0,0.00011543,2]
[348222332,1736398266608,-500.0,0.00011543,2]
[348222333,1736398266619,-500.0,0.00011543,2]
[348222334,1736398266628,-525.33,0.00011543,2]
[348222335,1736398266638,-500.0,0.00011543,2]
[348222336,1736398266647,-500.0,0.00011543,2]
[348222337,1736398266656,-500.0,0.00011543,2]
[348222338,1736398266666,-500.0,0.00011543,2]
[348222339,1736398266675,-216.97156315,0.00011543,2]
[348222340,1736398266684,-657.5,0.00011543,2]
[348222341,1736398266694,-431.39126583,0.00011543,2]
[348222342,1736398266703,-1649.36,0.00011543,2]
[348222343,1736398266712,-500.0,0.00011543,2]
[348222344,1736398266721,-1567.76,0.00011543,2]
[348222345,1736398266731,-1328.43,0.00011543,2]
[348222346,1736398266740,-500.0,0.00011543,2]
[348222347,1736398266749,-1401.65,0.00011543,2]
[348222348,1736398266758,-500.0,0.00011543,2]
[348222349,1736398266768,-500.0,0.00011543,2]
[348222350,1736398266777,-614.47,0.00011543,2]
[348222351,1736398266787,-500.0,0.00011543,2]
[348222352,1736398266796,-777.24,0.00011543,2]
[348222353,1736398266806,-422.14860609,0.00011543,2]
[348222354,1736398266815,-500.0,0.00011543,2]
[348222355,1736398266825,-1099.64,0.00011543,2]
[348222356,1736398266834,-543.23265426,0.0001159,2]
[348222357,1736398266845,-1005.0,0.000116,2]
[348222358,1736398266857,-1514.68,0.00011641,2]
[348222359,1736398266867,-702.38,0.00011641,2]
[348222360,1736398266876,-1049.37,0.00011641,2]
[348222361,1736398266885,-500.0,0.00011641,2]
[348222362,1736398266895,-500.0,0.00011641,2]
[348222363,1736398266904,-777.15,0.00011641,2]
[348222364,1736398266914,-962.32,0.00011641,2]
[348222365,1736398266922,-500.0,0.00011641,2]
[348222366,1736398266931,-500.0,0.00011641,2]
[348222367,1736398266940,-500.0,0.00011641,2]
[348222368,1736398266948,-500.0,0.00011641,2]
[348222369,1736398266957,-639.14,0.00011641,2]
[348222370,1736398266965,-1093.98,0.00011641,2]
[348222371,1736398266974,-500.0,0.00011641,2]
[348222372,1736398266983,-500.0,0.00011641,2]
[348222373,1736398266992,-963.71,0.00011641,2]
[348222374,1736398267002,-500.0,0.00011641,2]
[348222375,1736398267011,-1234.27,0.00011642,2]
[348222376,1736398267020,-1182.84,0.00011642,2]
[348222377,1736398267028,-587.07,0.00011642,2]
[348222378,1736398267037,-587.07,0.00011642,2]
[348222379,1736398267046,-500.0,0.00011642,2]
[348222380,1736398267055,-500.0,0.00011642,2]
[348222381,1736398267065,-500.0,0.00011642,2]
[348222382,1736398267074,-933.34,0.00011642,2]
[348222383,1736398267083,-1092.32,0.00011642,2]
[348222384,1736398267092,-3021.64,0.00011642,2]
[348222385,1736398267101,-818.73,0.00011643,2]
[348222386,1736398267110,-500.0,0.00011643,2]
[348222387,1736398267119,-500.0,0.00011643,2]
[348222388,1736398267127,-1349.54,0.00011643,2]
[348222389,1736398267136,-500.0,0.00011643,2]
[348222390,1736398267145,-1493.48,0.00011643,2]
[348222391,1736398267154,-505.99,0.00011643,2]
[348222392,1736398267163,-686.67,0.00011643,2]
[348222393,1736398267173,-869.64,0.00011643,2]
[348222394,1736398267183,-1183.5,0.00011643,2]
[348222395,1736398267192,-942.01,0.00011643,2]
[348222396,1736398267201,-322.18097,0.00011643,2]
[348222397,1736398267211,-2163.49,0.00011643,2]
[348222398,1736398267221,-861.542873,0.00011643,2]
[348222399,1736398267230,-1797.54,0.00011643,2]
[348222400,1736398267240,-500.0,0.00011643,2]
[348222401,1736398267249,-986.78,0.00011643,2]
[348222402,1736398267258,-500.0,0.00011643,2]
[348222403,1736398267268,-500.0,0.00011643,2]
[348222404,1736398267278,-405.49749146,0.00011643,2]
[348222405,1736398267287,-500.0,0.00011643,2]
[348222406,1736398267298,-543.23265426,0.00011659,2]
[348222407,1736398267307,-543.23265426,0.00011728,2]
[348222408,1736398267317,-180.774522,0.00011765,2]
[348222409,1736398267326,-1000.0,0.0001178,2]
[348222410,1736398267335,-1000.0,0.0001178,2]
[348222411,1736398267345,-1000.0,0.0001178,2]
[348222412,1736398267354,-1000.0,0.0001178,2]
[348222413,1736398267365,-1000.0,0.0001178,2]
[348222414,1736398267374,-1000.0,0.0001178,2]
[348222415,1736398267384,-1042.76471141,0.0001178,2]
[348222416,1736398267393,-500.0,0.0001178,2]
[348222417,1736398267403,-500.0,0.0001178,2]
[348222418,1736398267412,-500.0,0.0001178,2]
[348222419,1736398267422,-500.0,0.0001178,2]
[348222420,1736398267432,-500.0,0.0001178,2]
[348222421,1736398267441,-500.0,0.0001178,2]
[348222422,1736398267451,-513.81624374,0.0001178,2]
[348222423,1736398267460,-543.23265426,0.00011797,2]
[348222424,1736398267470,-200.0,0.000118,2]
[348222425,1736398267479,-586.89,0.00011807,2]
[348222426,1736398267489,-500.0,0.00011816,2]
[348222427,1736398267498,-500.0,0.00011816,2]
[348222428,1736398267510,-214.05763959,0.00011816,2]
[348222429,1736398267519,-500.0,0.00011816,2]
[348222430,1736398267527,-500.0,0.00011816,2]
[348222431,1736398267535,-500.0,0.00011816,2]
[348222432,1736398267544,-500.0,0.00011816,2]
[348222433,1736398267553,-500.0,0.00011816,2]
[348222434,1736398267562,-500.0,0.00011816,2]
[348222435,1736398267571,-586.57,0.00011816,2]
[348222436,1736398267580,-500.0,0.00011816,2]
[348222437,1736398267589,-500.0,0.00011816,2]
[348222438,1736398267598,-891.57,0.00011816,2]
[348222439,1736398267606,-2800.55,0.00011816,2]
[348222440,1736398267618,-500.0,0.00011816,2]
[348222441,1736398267628,-500.0,0.00011816,2]
[348222442,1736398267636,-500.0,0.00011816,2]
[348222443,1736398267645,-500.0,0.00011816,2]
[348222444,1736398267654,-596.27,0.00011816,2]
[348222445,1736398267662,-583.95,0.00011816,2]
[348222446,1736398267672,-500.0,0.00011816,2]
[348222447,1736398267682,-2330.18,0.00011816,2]
[348222448,1736398267691,-500.0,0.00011816,2]
[348222449,1736398267700,-500.0,0.00011816,2]
[348222450,1736398267709,-1068.42,0.00011816,2]
[348222451,1736398267718,-1291.41,0.00011816,2]
[348222452,1736398267726,-500.0,0.00011816,2]
[348222453,1736398267734,-500.0,0.00011816,2]
[348222454,1736398267743,-707.4,0.00011816,2]
[348222455,1736398267752,-834.83,0.00011816,2]
[348222456,1736398267762,-710.92,0.00011816,2]
[348222457,1736398267771,-500.0,0.00011816,2]
[348222458,1736398267780,-500.0,0.00011816,2]
[348222459,1736398267790,-500.0,0.00011816,2]
[348222460,1736398267799,-1775.27,0.00011816,2]
[348222461,1736398267808,-500.0,0.00011816,2]
[348222462,1736398267818,-500.0,0.00011816,2]
[348222463,1736398267827,-500.0,0.00011816,2]
[348222464,1736398267837,-536.88,0.00011816,2]
[348222465,1736398267846,-974.03,0.00011816,2]
[348222466,1736398267855,-500.0,0.00011816,2]
[348222467,1736398267867,-500.0,0.00011816,2]
[348222468,1736398267876,-500.0,0.00011816,2]
[348222469,1736398267886,-991.83,0.00011816,2]
[348222470,1736398267896,-500.0,0.00011816,2]
[348222471,1736398267905,-500.0,0.00011817,2]
[348222472,1736398267914,-500.0,0.00011817,2]
[348222473,1736398267924,-500.0,0.00011817,2]
[348222474,1736398267933,-500.0,0.00011817,2]
[348222475,1736398267942,-500.0,0.00011817,2]
[348222476,1736398267951,-500.0,0.00011817,2]
[348222477,1736398267960,-492.62989559,0.00011817,2]
[348222478,1736398267970,-500.0,0.00011817,2]
[348222479,1736398267979,-630.643825,0.00011817,2]
[348222480,1736398267988,-161.22663117,0.00011817,2]
[348222481,1736398267998,-500.0,0.00011817,2]
[348222482,1736398268007,-605.01812956,0.00011817,2]
[348222483,1736398268016,-500.0,0.00011817,2]
[348222484,1736398268025,-525.33,0.00011817,2]
[348222485,1736398268033,-500.0,0.00011817,2]
[348222486,1736398268043,-500.0,0.00011817,2]
[348222487,1736398268053,-500.0,0.00011817,2]
[348222488,1736398268062,-500.0,0.00011817,2]
[348222489,1736398268072,-657.5,0.00011817,2]
[348222490,1736398268081,-1649.36,0.00011817,2]
[348222491,1736398268091,-511.40597474,0.00011817,2]
[348222492,1736398268100,-1567.76,0.00011817,2]
[348222493,1736398268112,-1328.43,0.00011817,2]
[348222494,1736398268122,-500.0,0.00011817,2]
[348222495,1736398268132,-1401.65,0.00011817,2]
[348222496,1736398268142,-500.0,0.00011817,2]
[348222497,1736398268152,-500.0,0.00011817,2]
[348222498,1736398268161,-614.47,0.00011817,2]
[348222499,1736398268171,-500.0,0.00011817,2]
[348222500,1736398268181,-777.24,0.00011817,2]
[348222501,1736398268192,-500.0,0.00011817,2]
[348222502,1736398268202,-1099.64,0.00011817,2]
[348222503,1736398268211,-587.0,0.00011855,2]
[348222504,1736398268220,-543.23265426,0.00011866,2]
[348222505,1736398268230,-150.85705604,0.00011879,2]
[348222506,1736398268239,-78589.57594024,0.0001188,2]
[348222507,1736398268806,-500.0,9.898e-05,2]
[348222508,1736398268815,-500.0,9.898e-05,2]
[348222509,1736398268825,-95.6062822,9.898e-05,2]
[348222510,1736398268836,-404.3937178,9.898e-05,2]
[348222511,1736398268846,-500.0,9.999e-05,2]
[348222512,1736398268856,-500.0,0.00010172,2]
[348222513,1736398268867,-503.34577586,0.00010172,2]
[348222514,1736398268876,-500.0,0.00010172,2]
[348222515,1736398268886,-500.0,0.00010446,2]
[348222516,1736398268899,-500.0,0.0001072,2]
[348222517,1736398268908,-500.0,0.00010994,2]
[348222518,1736398268918,-91.90763631,0.00011268,2]
[348222519,1736398268953,-500.0,9.898e-05,2]
[348222520,1736398268963,-500.0,9.899e-05,2]
[348222521,1736398268972,-469.6911387,0.00010446,2]
[348222522,1736398268984,-30.3088613,0.00010446,2]
[348222523,1736398268994,-206.38236369,0.00011268,2]
[348222524,1736398269003,-71.02046508,0.0001188,2]
[348222525,1736398269014,-1889.27858349,0.0001188,2]
[348222526,1736398269026,-44771.51816236,0.0001188,2]
[348222527,1736398269035,-20221.03493236,0.0001188,2]
[348222528,1736398269045,-999.0,0.00011914,2]
[348222529,1736398269054,-1514.68,0.00011915,2]
[348222530,1736398269064,-702.38,0.00011915,2]
[348222531,1736398269074,-1049.37,0.00011915,2]
[348222532,1736398269084,-500.0,0.00011915,2]
[348222533,1736398269094,-500.0,0.00011915,2]
[348222534,1736398269104,-777.15,0.00011915,2]
[348222535,1736398269114,-962.32,0.00011915,2]
[348222536,1736398269125,-500.0,0.00011915,2]
[348222537,1736398269135,-500.0,0.00011915,2]
[348222538,1736398269145,-500.0,0.00011915,2]
[348222539,1736398269155,-500.0,0.00011915,2]
[348222540,1736398269165,-639.14,0.00011915,2]
[348222541,1736398269176,-1093.98,0.00011915,2]
[348222542,1736398269186,-500.0,0.00011915,2]
[348222543,1736398269196,-500.0,0.00011915,2]
[348222544,1736398269207,-963.71,0.00011915,2]
[348222545,1736398269217,-500.0,0.00011915,2]
[348222546,1736398269228,-1234.27,0.00011916,2]
[348222547,1736398269238,-1182.84,0.00011916,2]
[348222548,1736398269248,-587.07,0.00011916,2]
[348222549,1736398269259,-587.07,0.00011916,2]
[348222550,1736398269269,-500.0,0.00011916,2]
[348222551,1736398269279,-500.0,0.00011916,2]
[348222552,1736398269291,-573.07,0.00011916,2]
[348222553,1736398269301,-933.34,0.00011916,2]
[348222554,1736398269311,-3021.64,0.00011916,2]
[348222555,1736398269321,-818.73,0.00011917,2]
[348222556,1736398269331,-500.0,0.00011917,2]
[348222557,1736398269341,-500.0,0.00011917,2]
[348222558,1736398269351,-1349.54,0.00011917,2]
[348222559,1736398269363,-500.0,0.00011917,2]
[348222560,1736398269373,-1493.48,0.00011917,2]
[348222561,1736398269383,-505.99,0.00011917,2]
[348222562,1736398269394,-686.67,0.00011917,2]
[348222563,1736398269404,-869.64,0.00011917,2]
[348222564,1736398269415,-1183.5,0.00011917,2]
[348222565,1736398269426,-942.01,0.00011917,2]
[348222566,1736398269437,-322.18097,0.00011917,2]
[348222567,1736398269447,-2163.49,0.00011917,2]
[348222568,1736398269458,-861.542873,0.00011917,2]
[348222569,1736398269469,-1797.54,0.00011917,2]
[348222570,1736398269480,-500.0,0.00011917,2]
[348222571,1736398269490,-986.78,0.00011917,2]
[348222572,1736398269501,-500.0,0.00011917,2]
[348222573,1736398269514,-500.0,0.00011917,2]
[348222574,1736398269523,-543.23265426,0.00011934,2]
[348222575,1736398269533,-433.0,0.00011975,2]
[348222576,1736398269543,-1500.0,0.00011998,2]
[348222577,1736398269553,-5000.0,0.00012,2]
[348222578,1736398269563,-876.90609492,0.00012,2]
[348222579,1736398269572,-543.23265426,0.00012003,2]
[348222580,1736398269584,-150.0,0.0001202,2]
[348222581,1736398269594,-150.0,0.0001202,2]
[348222582,1736398269604,-150.0,0.00012034,2]
[348222583,1736398269776,-150.0,0.00012037,2]
[348222584,1736398269786,-150.0,0.00012048,2]
[348222585,1736398269797,-500.0,0.00012054,2]
[348222586,1736398269806,-200.0,0.00012055,2]
[348222587,1736398269816,-150.0,0.0001206,2]
[348222588,1736398269826,-543.23265426,0.00012072,2]
[348222589,1736398269835,-150.0,0.00012076,2]
[348222590,1736398269845,-155.0,0.00012077,2]
[348222591,1736398269854,-150.0,0.00012078,2]
[348222592,1736398269863,-150.0,0.0001208,2]
[348222593,1736398269873,-500.0,0.0001209,2]
[348222594,1736398269883,-500.0,0.0001209,2]
[348222595,1736398269892,-500.0,0.0001209,2]
[348222596,1736398269902,-500.0,0.0001209,2]
[348222597,1736398269911,-500.0,0.0001209,2]
[348222598,1736398269920,-500.0,0.0001209,2]
[348222599,1736398269930,-511.74,0.0001209,2]
[348222600,1736398269939,-500.0,0.0001209,2]
[348222601,1736398269949,-586.57,0.0001209,2]
[348222602,1736398269959,-500.0,0.0001209,2]
[348222603,1736398269968,-500.0,0.0001209,2]
[348222604,1736398269977,-891.57,0.0001209,2]
[348222605,1736398269987,-2800.55,0.0001209,2]
[348222606,1736398269997,-500.0,0.0001209,2]
[348222607,1736398270007,-500.0,0.0001209,2]
[348222608,1736398270015,-500.0,0.0001209,2]
[348222609,1736398270024,-500.0,0.0001209,2]
[348222610,1736398270033,-596.27,0.0001209,2]
[348222611,1736398270043,-500.0,0.0001209,2]
[348222612,1736398270052,-2330.18,0.0001209,2]
[348222613,1736398270062,-500.0,0.0001209,2]
[348222614,1736398270071,-500.0,0.0001209,2]
[348222615,1736398270080,-1068.42,0.0001209,2]
[348222616,1736398270090,-500.0,0.0001209,2]
[348222617,1736398270099,-1291.41,0.0001209,2]
[348222618,1736398270109,-500.0,0.0001209,2]
[348222619,1736398270120,-707.4,0.0001209,2]
[348222620,1736398270130,-834.83,0.0001209,2]
[348222621,1736398270139,-710.92,0.0001209,2]
[348222622,1736398270150,-500.0,0.0001209,2]
[348222623,1736398270159,-500.0,0.0001209,2]
[348222624,1736398270169,-245.8142727,0.0001209,2]
[348222625,1736398270179,-1775.27,0.0001209,2]
[348222626,1736398270188,-508.90579229,0.0001209,2]
[348222627,1736398270198,-500.0,0.0001209,2]
[348222628,1736398270208,-500.0,0.0001209,2]
[348222629,1736398270218,-536.88,0.0001209,2]
[348222630,1736398270227,-974.03,0.0001209,2]
[348222631,1736398270238,-511.64127644,0.0001209,2]
[348222632,1736398270248,-500.0,0.0001209,2]
[348222633,1736398270257,-991.83,0.0001209,2]
[348222634,1736398270267,-500.0,0.0001209,2]
[348222635,1736398270277,-500.0,0.00012091,2]
[348222636,1736398270286,-500.0,0.00012091,2]
[348222637,1736398270296,-500.0,0.00012091,2]
[348222638,1736398270305,-500.0,0.00012091,2]
[348222639,1736398270314,-500.0,0.00012091,2]
[348222640,1736398270323,-500.0,0.00012091,2]
[348222641,1736398270332,-500.0,0.00012091,2]
[348222642,1736398270341,-500.0,0.00012091,2]
[348222643,1736398270350,-525.33,0.00012091,2]
[348222644,1736398270360,-500.0,0.00012091,2]
[348222645,1736398270370,-500.0,0.00012091,2]
[348222646,1736398270379,-500.0,0.00012091,2]
[348222647,1736398270388,-500.0,0.00012091,2]
[348222648,1736398270398,-657.5,0.00012091,2]
[348222649,1736398270407,-1649.36,0.00012091,2]
[348222650,1736398270416,-1567.76,0.00012091,2]
[348222651,1736398270425,-500.0,0.00012091,2]
[348222652,1736398270434,-1328.43,0.00012091,2]
[348222653,1736398270444,-1401.65,0.00012091,2]
[348222654,1736398270454,-500.0,0.00012091,2]
[348222655,1736398270464,-614.47,0.00012091,2]
[348222656,1736398270473,-433.88088746,0.00012091,2]
[348222657,1736398270483,-777.24,0.00012091,2]
[348222658,1736398270492,-259.1,0.00012091,2]
[348222659,1736398270502,-1099.64,0.00012091,2]
[348222660,1736398270514,-12286.64123868,0.000121,2]
[348222661,1736398270524,-18146.93054744,0.00012116,2]
[348222662,1736398270533,-150.0,0.00012124,2]
[348222663,1736398270541,-4758.36916317,0.00012134,4]
[348222664,1736398270551,-543.23265426,0.00012141,2]
[348222665,1736398270560,-150.0,0.00012149,2]
[348222666,1736398270569,-2010.45,0.00012164,2]
[348222667,1736398270577,-2010.45,0.00012164,2]
[348222668,1736398270589,-2010.45,0.00012164,2]
[348222669,1736398270598,-2010.45,0.00012164,2]
[348222670,1736398270607,-2010.45,0.00012164,2]
[348222671,1736398270618,-2010.45,0.00012164,2]
[348222672,1736398270627,-2010.45,0.00012164,2]
[348222673,1736398270637,-2010.45,0.00012164,2]
[348222674,1736398270647,-2010.45,0.00012164,2]
[348222675,1736398270657,-2010.45,0.00012164,2]
[348222676,1736398270666,-2010.45,0.00012164,2]
[348222677,1736398270676,-2010.45,0.00012164,2]
[348222678,1736398270685,-2010.45,0.00012164,2]
[348222679,1736398270695,-2010.45,0.00012164,2]
[348222680,1736398270704,-2010.45,0.00012164,2]
[348222681,1736398270714,-2010.45,0.00012164,2]
[348222682,1736398270723,-2010.45,0.00012164,2]
[348222683,1736398270732,-1074.89246842,0.00012164,2]
[348222684,1736398270745,-935.55753158,0.00012164,2]
[348222685,1736398270755,-2010.45,0.00012164,2]
[348222686,1736398270764,-645.85784731,0.00012164,2]
[348222687,1736398270775,-1364.59215269,0.00012164,2]
[348222688,1736398270785,-466.82111033,0.00012164,2]
[348222689,1736398270814,-372.80077324,9.898e-05,2]
[348222690,1736398271160,-127.19922676,9.898e-05,2]
[348222691,1736398271169,-500.0,9.898e-05,2]
[348222692,1736398271176,-500.0,9.898e-05,2]
[348222693,1736398271183,-500.0,9.898e-05,2]
[348222694,1736398271190,-500.30961652,9.898e-05,2]
[348222695,1736398271197,-231.69115672,9.898e-05,2]
[348222696,1736398271206,-268.30884328,9.898e-05,2]
[348222697,1736398271213,-500.0,9.899e-05,2]
[348222698,1736398271221,-500.0,9.999e-05,2]
[348222699,1736398271227,-500.0,9.999e-05,2]
[348222700,1736398271234,-500.0,0.00010172,2]
[348222701,1736398271241,-573.198,0.00010172,2]
[348222702,1736398271248,-500.0,0.00010172,2]
[348222703,1736398271254,-500.0,0.00010172,2]
[348222704,1736398271262,-500.0,0.00010172,2]
[348222705,1736398271270,-538.3788573,0.00010173,2]
[348222706,1736398271277,-501.45288796,0.00010173,2]
[348222707,1736398271284,-384.97239096,0.00010257,2]
[348222708,1736398271291,-500.0,0.00010273,2]
[348222709,1736398271297,-500.0,0.00010273,2]
[348222710,1736398271304,-500.0,0.00010446,2]
[348222711,1736398271311,-500.0,0.00010446,2]
[348222712,1736398271319,-384.97239096,0.00010537,2]
[348222713,1736398271326,-406.42,0.00010547,2]
[348222714,1736398271333,-500.0,0.00010547,2]
[348222715,1736398271340,-500.0,0.0001072,2]
[348222716,1736398271348,-500.0,0.0001072,2]
[348222717,1736398271355,-500.0,0.00010821,2]
[348222718,1736398271362,-384.97239096,0.00010939,2]
[348222719,1736398271372,-622.26,0.00010994,2]
[348222720,1736398271379,-500.0,0.00010994,2]
[348222721,1736398271387,-500.0,0.00011095,2]
[348222722,1736398271394,-500.0,0.00011268,2]
[348222723,1736398271403,-500.0,0.00011369,2]
[348222724,1736398271409,-1543.62888967,0.00012164,2]
[348222725,1736398271416,-1159.50828414,0.00012164,2]
[348222726,1736398271431,-384.97239096,0.00011194,2]
[348222727,1736398271438,-850.94171586,0.00012164,2]
[348222728,1736398271446,-2010.45,0.00012164,2]
[348222729,1736398271453,-2010.48709419,0.00012164,2]
[348222730,1736398271461,-152.0,0.00012179,3]
[348222731,1736398271468,-1514.68,0.00012189,2]
[348222732,1736398271477,-702.38,0.00012189,2]
[348222733,1736398271486,-1049.37,0.00012189,2]
[348222734,1736398271495,-500.0,0.00012189,2]
[348222735,1736398271505,-500.0,0.00012189,2]
[348222736,1736398271517,-777.15,0.00012189,2]
[348222737,1736398271527,-962.32,0.00012189,2]
[348222738,1736398271535,-500.0,0.00012189,2]
[348222739,1736398271545,-500.0,0.00012189,2]
[348222740,1736398271555,-500.0,0.00012189,2]
[348222741,1736398271565,-500.0,0.00012189,2]
[348222742,1736398271573,-639.14,0.00012189,2]
[348222743,1736398271582,-1093.98,0.00012189,2]
[348222744,1736398271593,-500.0,0.00012189,2]
[348222745,1736398271602,-500.0,0.00012189,2]
[348222746,1736398271611,-963.71,0.00012189,2]
[348222747,1736398271623,-500.0,0.00012189,2]
[348222748,1736398271633,-1234.27,0.0001219,2]
[348222749,1736398271641,-844.07674546,0.0001219,2]
[348222750,1736398271673,-500.0,0.00010446,2]
[348222751,1736398271682,-500.0,0.00011542,2]
[348222752,1736398271691,-338.76325454,0.0001219,2]
[348222753,1736398271700,-568.75323847,0.0001219,2]
[348222754,1736398271712,-18.31676153,0.0001219,2]
[348222755,1736398271721,-587.07,0.0001219,2]
[348222756,1736398271730,-500.0,0.0001219,2]
[348222757,1736398271740,-500.0,0.0001219,2]
[348222758,1736398271749,-933.34,0.0001219,2]
[348222759,1736398271759,-150.0,0.0001219,2]
[348222760,1736398271769,-3021.64,0.0001219,2]
[348222761,1736398271778,-818.73,0.00012191,2]
[348222762,1736398271787,-500.0,0.00012191,2]
[348222763,1736398271797,-500.0,0.00012191,2]
[348222764,1736398271807,-1349.54,0.00012191,2]
[348222765,1736398271817,-500.0,0.00012191,2]
[348222766,1736398271828,-1493.48,0.00012191,2]
[348222767,1736398271838,-505.99,0.00012191,2]
[348222768,1736398271848,-686.67,0.00012191,2]
[348222769,1736398271859,-869.64,0.00012191,2]
[348222770,1736398271870,-150.0,0.00012191,2]
[348222771,1736398271880,-1183.5,0.00012191,2]
[348222772,1736398271890,-942.01,0.00012191,2]
[348222773,1736398271900,-322.18097,0.00012191,2]
[348222774,1736398271911,-2163.49,0.00012191,2]
[348222775,1736398271921,-861.542873,0.00012191,2]
[348222776,1736398271932,-1797.54,0.00012191,2]
[348222777,1736398271942,-477.67946354,0.00012191,2]
[348222778,1736398271953,-150.0,0.00012191,2]
[348222779,1736398271963,-986.78,0.00012191,2]
[348222780,1736398271973,-500.0,0.00012191,2]
[348222781,1736398271983,-500.0,0.00012191,2]
[348222782,1736398271992,-1094.61,0.000122,2]
[348222783,1736398272002,-176.91603584,0.000122,2]
[348222784,1736398272013,-1091.8673637,0.000122,2]
[348222785,1736398272024,-150.0,0.00012207,2]
[348222786,1736398272034,-543.23265426,0.0001221,2]
[348222787,1736398272044,-150.0,0.00012213,2]
[348222788,1736398272055,-150.0,0.00012216,2]
[348222789,1736398272065,-150.0,0.00012216,2]
[348222790,1736398272075,-150.0,0.00012216,2]
[348222791,1736398272084,-150.63979559,0.00012221,2]
[348222792,1736398272094,-150.0,0.00012221,2]
[348222793,1736398272104,-150.0,0.00012249,2]
[348222794,1736398272115,-150.0,0.00012258,2]
[348222795,1736398272125,-150.0,0.00012264,2]
[348222796,1736398272134,-518.57,0.0001227,2]
[348222797,1736398272144,-33736.0,0.00012274,2]
[348222798,1736398272153,-150.0,0.00012274,2]